Cogmind - Beta 14 @@@ ROGUE MODE // 2024.12.05 @ 05:31:35 Player: Shimmyarah Result: Destroyed by D-53 Grenadier with Mini Grenade Launcher Performance ------------- Evolutions (0) 0 Regions Visited (2) 400 Robots Destroyed (39) 195 Value Destroyed (595) 595 Prototype IDs (0) 0 Alien Tech Used (0) 0 Bonus (25) 25 TOTAL SCORE: 1215 Bonus ------- Follower Combat Kills 25 Cogmind --------- Core Integrity 0/250 Matter 280/300 Energy 265/265 System Corruption 1% Temperature Cool (2) Movement Treading (240) Ox1 Location -10/Mines Parts ------- > --- POWER (1) -------- Improved Ion Engine > --- PROPULSION (2) --- Light Treads Light Treads > --- UTILITY (2) ------ High-capacity Storage Unit Visual Processing Unit > --- WEAPON (2) ------- Grenade Launcher > --- INVENTORY (20) --- Ion Engine Light Nuclear Core Light Treads Light Treads Light Treads Light Treads Flight Unit Flight Unit Sensor Array Signal Interpreter ECM Suite Light Armor Plating Light Armor Plating Light Armor Plating Hacking Suite Light Cannon Light Cannon Mining Laser Mining Claw Peak State ------------ > --- POWER ------------ Improved Ion Engine > --- PROPULSION ------- Light Treads Light Treads > --- UTILITY ---------- High-capacity Storage Unit Visual Processing Unit > --- WEAPON ----------- Light Cannon Light Cannon > --- INVENTORY -------- Ion Engine Light Nuclear Core Light Treads Light Treads Light Treads Light Treads Flight Unit Flight Unit Sensor Array Signal Interpreter ECM Suite Propulsion Shielding Light Armor Plating Light Armor Plating Hacking Suite Light Cannon Grenade Launcher Grenade Launcher Mining Laser Mining Claw [Rating: 11] Favorites ----------- Power Ion Engine Engine Ion Engine Propulsion Light Treads Treads Light Treads Leg Aluminum Leg Utility Visual Processing Unit Device Seismic Detector Storage Medium Storage Unit Processor Visual Processing Unit Weapon Light Cannon Energy Gun Medium Laser Ballistic Gun Light Assault Rifle Ballistic Cannon Light Cannon Launcher Grenade Launcher Build | -11 -10 -10 ------- Run | Yrd Mat Min Slots Evolved . | . . . Power . | . . . Propulsion . | . . . Utility . | . . . Weapon . | . . . Parts Attached 27 | 1 20 6 Power 3 | . 2 1 Engine 3 | . 2 1 Core . | . . . Reactor . | . . . Propulsion 8 | . 6 2 Treads 6 | . 4 2 Leg 2 | . 2 . Wheel . | . . . Hover . | . . . Flight . | . . . Utility 8 | 1 6 1 Device 4 | 1 3 . Storage 3 | . 2 1 Processor 1 | . 1 . Hackware . | . . . Protection . | . . . Artifact . | . . . Weapon 8 | . 6 2 Energy Gun . | . . . Energy Cannon . | . . . Ballistic Gun . | . . . Ballistic Cannon 6 | . 6 . Launcher 2 | . . 2 Special Weapon . | . . . Impact Weapon . | . . . Slashing Weapon . | . . . Piercing Weapon . | . . . Special Melee Weapon . | . . . Unidentified Prototypes . | . . . Parts Lost 3 | . 1 2 Power . | . . . Propulsion . | . . . Utility 1 | . 1 . Weapon 2 | . . 2 Highest Loss Streak 2 | . 1 2 To Critical Strikes . | . . . Average Slot Usage (%) 99 | . 99 100 Engine 14 | . 14 14 Treads 25 | . 23 28 Leg 2 | . 4 . Device 2 | . 3 . Storage 14 | . 14 14 Processor 11 | . 10 14 Energy Gun 1 | . 2 . Ballistic Cannon 25 | . 25 27 Peak Build Rating 11 | 8 10 11 Average Rating 9 | 7 8 10 On Entrance 7 | 6 8 9 Naked Turns . | . . . Heaviest Build 53 | 12 31 53 Greatest Support 40 | 20 40 40 Greatest Overweight (x) 6 | . 6 1 Average Overweight (x) . | . . . Largest Inventory Capacity 20 | 8 15 20 Average Capacity 13 | 8 11 19 Most Carried 20 | 8 15 20 Average Carried 13 | 6 10 19 Final Capacity 20 | 8 15 20 Final Carried 19 | 8 15 19 Class Distribution -------------------- 94% | Mutant 5% | Scavenger-Mutant Dominant Class ---------------- Mutant | -10/Materials Mutant | -10/Mines Resources | -11 -10 -10 ----------- Run | Yrd Mat Min Matter Collected 978 | 255 510 213 Remotely . | . . . Salvage Created 1142 | 332 569 241 Parts 79 | 31 41 7 Haulers Intercepted 2 | . 2 . Recyclers Shooed . | . . . Parts Field Recycled . | . . . Retrieved Matter . | . . . Parts Self-Destructed . | . . . Prevented . | . . . Kills | -11 -10 -10 ------- Run | Yrd Mat Min Combat Hostiles Destroyed 22 | . 12 10 Cannons 16 | . 12 4 AOE 6 | . . 6 Classes Destroyed 10 | 3 6 1 Worker 5 | 4 1 . Tunneler 9 | 9 . . Hauler 2 | . 2 . Recycler 4 | 1 1 2 Mechanic 1 | . 1 . Operator 2 | . 2 . Watcher 3 | . 3 . Swarmer 3 | . 3 . Grunt 10 | . 9 1 Assembled 9 | . . 9 Best Kill Streak 9 | 2 4 9 Combat Bots Only 9 | . 4 9 Max Kills in Single Turn 3 | 1 1 3 Gunslinging . | . . . Exploded 3 | . . 3 Melee . | . . . Uniques/NPCs Destroyed . | . . . Combat | -11 -10 -10 -------- Run | Yrd Mat Min Hostile Shots Fired 86 | . 60 26 Missed 17 | . 12 5 Damage Taken 1243 | . 598 645 Core 295 | . 94 201 Absorbed by Shields . | . . . Core Remaining (%) 100 | 100 . . Volleys Fired 105 | 45 46 14 Largest 2 | 2 2 2 Hottest 85 | 70 85 70 Shots Fired 207 | 89 91 27 Gun 105 | 89 16 . Cannon 93 | . 75 18 Launcher 9 | . . 9 Special . | . . . Kinetic 138 | 45 75 18 Thermal 60 | 44 16 . Explosive 9 | . . 9 Electromagnetic . | . . . Robot Hit Streak 7 | 6 6 7 Robot Miss Streak 5 | 3 5 1 Penetration Max . | . . . Secondary Targets . | . . . Shots Hit Robots 120 | 53 51 16 Core Hits 69 | 21 26 22 Critical Kills . | . . . Critical Parts Destroyed 1 | 1 . . Critical Strikes 6 | 2 4 . Burn 4 | 1 3 . Destroy 1 | 1 . . Blast 1 | . 1 . Melee Attacks . | . . . Impact . | . . . Slashing . | . . . Piercing . | . . . Sneak Attacks . | . . . Combat Hostiles . | . . . Follow-up Attacks . | . . . Damage Inflicted 2066 | 525 932 609 Guns 634 | 525 109 . Cannons 1031 | . 799 232 Explosions 377 | . . 377 Melee . | . . . Ramming 24 | . 24 . Kinetic 1233 | 202 799 232 Thermal 531 | 323 109 99 Explosive 278 | . . 278 Electromagnetic . | . . . Impact . | . . . Slashing . | . . . Piercing . | . . . Highest Corruption 1 | . 1 1 Average Corruption 1 | . 1 1 Corruption Purged . | . . . Corruption Blocked . | . . . Effects 22 | . 16 6 Message Errors 4 | . 1 3 Matter Fused 6 | . 5 1 Heat Flow Errors 3 | . 3 . Energy Discharges 3 | . 3 . Data Loss (minor) 2 | . 1 1 Data Loss (major) 1 | . 1 . Alerts 2 | . 1 1 Weapon Failures 1 | . 1 . Overload Shots . | . . . Overflow Damage 7 | . 4 3 Projectiles 4 | . 4 . Explosions 3 | . . 3 Melee . | . . . Knockbacks 9 | . 7 2 Impact . | . . . Kinetic 8 | . 6 2 Secondary 1 | . 1 . Self-Inflicted Damage 83 | . . 83 Shots 3 | . . 3 Rammed 7 | . 7 . Targets Rammed 7 | . 7 . Kicked . | . . . Crushed . | . . . Highest Temperature 321 | 160 321 82 Average Temperature 53 | 39 70 29 Received Heat Transfer 300 | . 231 69 Effects 1 | . 1 . Interference 1 | . 1 . Siege Activations . | . . . Robots Corrupted . | . . . Combat Hostiles . | . . . Parts Fried . | . . . Impact Corruptions . | . . . Robots Melted . | . . . Combat Hostiles . | . . . Parts Melted 3 | 2 1 . Heat Transferred 1741 | 1036 555 150 Parts Sabotaged . | . . . Parts Stolen . | . . . Parts Stripped . | . . . Power Chain Reactions . | . . . Alert | -11 -10 -10 ------- Run | Yrd Mat Min Peak Influence 223 | 70 223 74 Initial 45 | . 45 . Average 45 | 35 64 11 Maximum Alert Level 1 | . 1 . Low Security (%) 96 | 100 93 100 Level 1 3 | . 6 . Level 2 . | . . . Level 3 . | . . . Level 4 . | . . . Level 5 . | . . . High Security . | . . . Max Security . | . . . Squads Dispatched 3 | . 3 . Investigation 1 | . 1 . Extermination . | . . . Reinforcement 2 | . 2 . Assault . | . . . Garrison . | . . . Intercept . | . . . Searches Triggered . | . . . Construction Impeded . | . . . Haulers Reinforced . | . . . Active Scanning Responses . | . . . Cargo Convoy Interrupts . | . . . Stealth | -11 -10 -10 --------- Run | Yrd Mat Min Distress Signals 1 | . 1 . Communications Jammed . | . . . Distress Signals . | . . . Times Spotted 35 | . 22 13 Peak Tracking Total 10 | . 4 10 Tactical Retreats 3 | . 2 1 Traps | -11 -10 -10 ------- Run | Yrd Mat Min Traps Triggered 4 | . 4 . Indirectly . | . . . Trap Hack Attempts . | . . . Triggered . | . . . Disarmed . | . . . Reprogrammed . | . . . Reused . | . . . Traps Extracted . | . . . Installed . | . . . Triggered . | . . . Machines | -11 -10 -10 ---------- Run | Yrd Mat Min Machines Disabled 1 | . . 1 Max in Single Turn 1 | . . 1 Machines Repaired . | . . . Machines Dismantled . | . . . Machines Sabotaged . | . . . Overloaded Fab Kills . | . . . Hacking | -11 -10 -10 --------- Run | Yrd Mat Min Machines Accessed 8 | . 8 . Terminals 6 | . 6 . Fabricators . | . . . Repair Stations . | . . . Recycling Units 2 | . 2 . Scanalyzers . | . . . Garrison Access . | . . . Total Hacks 25 | . 25 . Successful 12 | . 12 . Failed 13 | . 13 . Catastrophic 1 | . 1 . Database Lockouts . | . . . Manual 15 | . 15 . Terminals 18 | . 18 . Fabricators . | . . . Repair Stations . | . . . Recycling Units 7 | . 7 . Scanalyzers . | . . . Garrison Access . | . . . Terminal Hacks 5 | . 5 . Part Schematic 1 | . 1 . Robot Analysis 1 | . 1 . Patrol Status 1 | . 1 . Hauler Manifests 1 | . 1 . Registered Components 1 | . 1 . Fabricator Hacks . | . . . Repair Station Hacks . | . . . Recycling Unit Hacks 1 | . 1 . Retrieve Components 1 | . 1 . Scanalyzer . | . . . Garrison Access Hacks . | . . . Unauthorized Hacks 6 | . 6 . Terminals 3 | . 3 . Track 1 | . 1 . Assimilate 1 | . 1 . Operators 1 | . 1 . Fabricators . | . . . Repair Stations . | . . . Recycling Units 3 | . 3 . Monitor 1 | . 1 . Reject 2 | . 2 . Scanalyzers . | . . . Garrison Access . | . . . Data Cores Recovered . | . . . Used . | . . . Hacking Detections 8 | . 8 . Full Trace Events . | . . . Feedback Events . | . . . Feedback Blocked . | . . . Robot Schematics Acquired . | . . . Robots Built . | . . . Authchips . | . . . Time . | . . . Total Robot Build Rating . | . . . Part Schematics Acquired 1 | . 1 . Parts Built . | . . . Authchips . | . . . Time . | . . . Total Part Build Rating . | . . . Parts Repaired . | . . . Time . | . . . Parts Recycled . | . . . Recycled Matter . | . . . Retrieved Matter . | . . . Retrieved Components 2 | . 2 . Parts Scanalyzed . | . . . Part Schematics Acquired . | . . . Parts Damaged . | . . . Bothacking | -11 -10 -10 ------------ Run | Yrd Mat Min Used RIF Installer . | . . . Robots Hacked . | . . . Non-combat . | . . . Combat . | . . . Robot Hacks Applied . | . . . Relay Couplers Released . | . . . Fabnet Peak Effective % . | . . . Robots Rewired . | . . . Allies Hacked . | . . . Hacks Repelled . | . . . Allies | -11 -10 -10 -------- Run | Yrd Mat Min Total Allies 2 | . . 2 Largest Group 2 | . . 2 Highest-Rated Group 42 | . . 42 Highest-Rated Ally 31 | . . 31 Total Orders . | . . . Ally Attacks 10 | . . 10 Total Damage 106 | . . 106 Kills 1 | . . 1 Allies Corrupted . | . . . Allies Melted 1 | . . 1 Intel | -11 -10 -10 ------- Run | Yrd Mat Min Robot Analysis Total 1 | . 1 . Derelict Logs Recovered 1 | . . 1 Drone Launches . | . . . Drone Recoveries . | . . . Exploration | -11 -10 -10 ------------- Run | Yrd Mat Min Turns Passed 3883 | 353 2292 1238 Spaces Moved 2001 | 188 1316 497 Core 2 | . 2 . Treads 1582 | . 1085 497 Legs 417 | 188 229 . Wheels . | . . . Hover . | . . . Flight . | . . . Fastest Speed 120 | 120 120 160 Average Speed 170 | 120 153 236 Slowest Speed 350 | 120 350 240 Overloaded Moves . | . . . Propulsion Burnouts . | . . . Robots Hopped . | . . . Cave-ins Triggered . | . . . Exploration Rate (%) 63 | 6 98 86 Regions Visited 2 Branch Regions 1 Pre-discovered Areas . | . . . Known Exits Taken . | . . . Unknown Exits Taken 2 | 1 1 . Scrap Searched 1 | . . 1 Spaces Dug . | . . . Terrain Destroyed 80 | . . 80 Melee . | . . . Projectile . | . . . AOE 80 | . . 80 Terrain Rammed . | . . . Walls Destroyed . | . . . Machines Disabled . | . . . Actions | -11 -10 -10 --------- Run | Yrd Mat Min Total 2274 | 238 1500 536 Wait 78 | . 70 8 Move 1999 | 187 1315 497 Hop . | . . . Pick Up 31 | 4 21 6 Fast Attach 7 | . 7 . Attach 5 | 1 3 1 Detach . | . . . Swap 15 | . 10 5 Drop 27 | 1 21 5 Fire 105 | 45 46 14 Melee . | . . . Ram . | . . . Kick . | . . . Crush 7 | . 7 . Escape Stasis . | . . . Rewire . | . . . Trap . | . . . Miscellaneous . | . . . Route ------- -11/Scrapyard -10/Materials (discovered 5 exits: [*Mat x3] / [*Min] / [*Sub]) -10/Mines (discovered 2 exits: [*Mat x2]) History --------- Turn | Location | Event 10 | -11/Scrapyard | Discovered new exit (range 3) 354 | -11/Scrapyard | Entered Materials 355 | -10/Materials | Build established: Mutant 574 | -10/Materials | Discovered new exit (range 14) 819 | -10/Materials | Discovered new exit (range 8) 1044 | -10/Materials | Discovered new exit (range 15) 1082 | -10/Materials | Discovered new exit (range 17) 1456 | -10/Materials | Discovered new exit (range 5) 2646 | -10/Materials | Entered Mines 2680 | -10/Mines | Found DCF Scrap (15 items) 2952 | -10/Mines | Discovered new exit (range 11) 3166 | -10/Mines | Discovered new exit (range 6) 3463 | -10/Mines | A weapon hastily lodged in a ceiling crevice suddenly fell to the ground 3671 | -10/Mines | Joined a pair of Derelicts in attacking an 0b10 outpost 3772 | -10/Mines | Assembled infested the area 3777 | -10/Mines | Assisted by a Guerilla fighting off Assembled 3806 | -10/Mines | Core integrity fell below 50% 3858 | -10/Mines | Destroyed 9 combat bots 3876 | -10/Mines | Core integrity fell below 20% 3884 | -10/Mines | Destroyed by D-53 Grenadier with Mini Grenade Launcher Last Messages --------------- 03815_ as-37864 knocked back. 03815_ as-37864 destroyed. 03815_ as-93944 destroyed. 03815_ as-57755 destroyed. 03815_ Destroyed Asb. Hover Unit. 03818_ as-45181 destroyed. 03821_ as-44846 destroyed. 03824_ Acquired 2 matter. 03829_ The unstable cave ceiling collapses. 03834_ as-41475 destroyed. 03837_ as-13522 destroyed. 03848_ The unstable cave ceiling collapses. 03857_ Acquired 36 matter. 03859_ Acquired 5 matter. 03873_ Extracted 77 matter. 03874_ The unstable cave ceiling collapses. 03877_ Extracted 14 matter. 03878_ Grenade Launcher destroyed. 03880_ Extracted 9 matter. 03882_ Lgt. Cannon destroyed. Map ----- +----------------------------------------------------+ | ??????????## #?????????????? | | ???????????### ##?????????????? | | ?????????##### ##??????????????? | | ?????????# ###?????????????? | | ?????????# ##????????????? | | ????????## "#????????????? | | ????????# % "#????????????? | | ????????# "#????????????? | | ????????## "#????????????? | | ????????# ##???????????? | | ????????## # #???????????? | | ?????????# ##???????????? | | ?????????# # ###????????????? | | ????????## #?????????????? | | ??????### # ###?????????????? | | ??????# = #???????????????? | | ??????# ##??????????????? | | ??????# #??????????????? | | ??????#* ###??????????????? | | ??????# ##????????????????? | | ????### ####?????????????????? | | ???## ##???????????????????? | | ??## ##??????????????????? | | ??# ##?????????????????? | | ??# ####??????????????? | | ??# @ #?????????????# | | ??## dd ##???????## | | ??# ### | | ??## | | ???## ## # | | ????##?# ## ? | | ???????? ##?? ?# # | | ???????? ##???? #?# | | ???????? #???????#?# | | ???????? ?????????# | | ???????? ????????? | | ???????? ##????????# | | ???????? ##??????????###### | | ????????#?????????????????## | | ???????????????????????????##### | | ???????????????????????????????? | | ???????????????????????????????? | | | | | | | | | | | | | | | | | +----------------------------------------------------+ Best States ------------- Heat Dissipation 25 Energy Generation 12 Energy Capacity 265 Matter Stores 300 Matter Capacity 300 Sight Range 18 Terrain Scan Range 16 Terrain Scan Density 10 Evasion (%) 55 Recoil Reduction 2 Item Schematics ----------------- Hcp. Storage Unit | -10/Materials | Hacked Robot Schematics ------------------ None Fabricated ------------ Nothing Alien Tech Used ----------------- None Achievements -------------- None Challenges ------------ None Game ------ Seed AlloyMicroTerrabomb Manual? 0 Play Time 00:26:10 Cumulative 103.0 hours Start 2024.12.04 @ 22:40:28 End 2024.12.05 @ 05:31:35 Sessions 2 Manual Loads 0 Difficulty Rogue Special Mode None Game No. 146 Rogue 146 Adventurer 0 Explorer 0 Win Type - Total 0 Types 0/0/0/0/0/0/0/0/0 Lore% 58 Gallery% 47 Achievement% 34 Wizard Run 0 Options --------- Layout 1 ASCII 0 Keyboard 0 Movement Arrows Keybinds 0 Fullscreen 1 Font 24/Smallcaps Map View 50x40 Zoom Use 3% Tactical HUD 1 Map Filters NONE Filters NONE Steam 1 RUN: 45d6ac82-8718-490e-872e-2c549173f9ab